Cogmind - Beta 16.1 @@@ ROGUE MODE // 2026.04.06 @ 19:49:09 Player: Twist Result: Destroyed by G-34 Mercenary with Small Laser Performance ------------- Evolutions (0) 0 Regions Visited (1) 200 Robots Destroyed (14) 70 Value Destroyed (281) 281 Prototype IDs (0) 0 Alien Tech Used (0) 0 Bonus (0) 0 TOTAL SCORE: 551 Bonus ------- None Cogmind --------- Core Integrity 0/250 Matter 291/300 Energy 100/100 System Corruption 5% Temperature Cool (6) Movement Core (50) Location -10/Materials Parts ------- > --- POWER (1) -------- (None) > --- PROPULSION (2) --- (None) > --- UTILITY (2) ------ Structural Scanner Visual Processing Unit > --- WEAPON (2) ------- Light Assault Rifle > --- INVENTORY (5) ---- Visual Processing Unit Peak State ------------ > --- POWER ------------ Ion Engine > --- PROPULSION ------- Aluminum Leg Aluminum Leg > --- UTILITY ---------- Structural Scanner Visual Processing Unit > --- WEAPON ----------- Assault Rifle > --- INVENTORY -------- (None) [Rating: 7] Favorites ----------- Power Ion Engine Engine Ion Engine Propulsion Aluminum Leg Leg Aluminum Leg Wheel Wheel Hover Unit Hover Unit Utility Structural Scanner Device Structural Scanner Storage Huge Storage Unit Processor Visual Processing Unit Weapon Assault Rifle Energy Gun EM Pulse Gun Ballistic Gun Assault Rifle Build | -11 -10 ------- Run | Yrd Mat Slots Evolved . | . . Power . | . . Propulsion . | . . Utility . | . . Weapon . | . . Parts Attached 15 | 5 10 Power 2 | 1 1 Engine 2 | 1 1 Core . | . . Reactor . | . . Propulsion 6 | 1 5 Treads . | . . Leg 4 | 1 3 Wheel 1 | . 1 Hover 1 | . 1 Flight . | . . Utility 3 | . 3 Device 1 | . 1 Storage 1 | . 1 Processor 1 | . 1 Hackware . | . . Protection . | . . Artifact . | . . Weapon 4 | 3 1 Energy Gun 2 | 2 . Energy Cannon . | . . Ballistic Gun 2 | 1 1 Ballistic Cannon . | . . Launcher . | . . Special Weapon . | . . Impact Weapon . | . . Slashing Weapon . | . . Piercing Weapon . | . . Special Melee Weapon . | . . Unidentified Prototypes . | . . Parts Lost 8 | . 8 Power 2 | . 2 Propulsion 3 | . 3 Utility . | . . Weapon 3 | . 3 Highest Loss Streak 5 | . 5 To Critical Strikes . | . . Average Backups . | . . Power . | . . Propulsion . | . . Utility . | . . Weapon . | . . Tool/Special . | . . Unused Backups 1 | . 1 Power . | . . Propulsion . | . . Utility 1 | . 1 Weapon . | . . Tool/Special . | . . Average Slot Usage (%) 68 | . 68 Engine 12 | . 12 Leg 23 | . 23 Device 10 | . 10 Processor 4 | . 4 Energy Gun 5 | . 5 Ballistic Gun 10 | . 10 Peak Build Rating 7 | 4 7 Average Rating 4 | 2 5 On Entrance 2 | . 4 Avg Prop Armor Cover (%) 16 | . 16 Naked Turns . | . . Heaviest Build 88 | 7 88 Greatest Support 20 | 10 20 Greatest Overweight (x) 4 | . 4 Average Overweight (x) . | . . Largest Inventory Capacity 25 | 5 25 Average Capacity 5 | 5 5 Most Carried 3 | 2 3 Average Carried . | . . Final Capacity 5 | 5 5 Final Carried 1 | 1 1 Class Distribution -------------------- 61% | Scavenger-Mutant 38% | Mutant Dominant Class ---------------- Scavenger-Mutant | -10/Materials Resources | -11 -10 ----------- Run | Yrd Mat Matter Collected 442 | 260 182 Remotely . | . . Salvage Created 408 | 77 331 Parts 31 | 5 26 Haulers Intercepted . | . . Recyclers Shooed . | . . Parts Field Recycled . | . . Retrieved Matter . | . . Parts Self-Destructed . | . . Prevented . | . . Parts Restored . | . . Kills | -11 -10 ------- Run | Yrd Mat Combat Hostiles Destroyed 8 | 1 7 Guns 6 | 1 5 AOE 2 | . 2 Classes Destroyed 5 | 2 3 Worker 2 | 1 1 Builder 2 | . 2 Watcher 2 | . 2 Swarmer 2 | . 2 Grunt 6 | 1 5 Best Kill Streak 7 | 1 7 Combat Bots Only 3 | 1 3 Max Kills in Single Turn 2 | 1 2 Gunslinging . | . . Exploded 2 | . 2 Melee . | . . Uniques/NPCs Destroyed . | . . Combat | -11 -10 -------- Run | Yrd Mat Hostile Shots Fired 116 | 2 114 Missed 29 | 1 28 Hits 87 | 1 86 Projectile 87 | 1 86 Damage Taken 908 | 19 889 Core 253 | . 253 Absorbed by Shields . | . . Core Remaining (%) 100 | 100 . Volleys Fired 50 | 3 47 Largest 2 | 2 2 Hottest 80 | 80 80 Shots Fired 59 | 6 53 Gun 59 | 6 53 Cannon . | . . Launcher . | . . Special . | . . Kinetic 33 | . 33 Thermal . | . . Explosive . | . . Electromagnetic 26 | 6 20 Robot Hit Streak 6 | 2 6 Robot Miss Streak 3 | 1 3 Penetration Max . | . . Secondary Targets . | . . Shots Hit Robots 40 | 4 36 Core Hits 25 | 2 23 Critical Kills . | . . Critical Parts Destroyed . | . . Critical Strikes . | . . Melee Attacks . | . . Impact . | . . Slashing . | . . Piercing . | . . Sneak Attacks . | . . Combat Hostiles . | . . Follow-up Attacks . | . . Damage Inflicted 787 | 100 687 Guns 547 | 55 492 Cannons . | . . Explosions 212 | 45 167 Melee . | . . Ramming 28 | . 28 Kinetic 278 | . 278 Thermal 212 | 45 167 Explosive . | . . Electromagnetic 269 | 55 214 Impact . | . . Slashing . | . . Piercing . | . . Highest Corruption 5 | . 5 Average Corruption 5 | . 5 Corruption Purged . | . . Corruption Blocked . | . . Overload Shots . | . . Overflow Damage . | . . Projectiles . | . . Explosions . | . . Melee . | . . Knockbacks . | . . Impact . | . . Kinetic . | . . Secondary . | . . Self-Inflicted Damage 17 | 9 8 Shots 1 | 1 . Rammed 6 | . 6 Targets Rammed 10 | . 10 Kicked 4 | . 4 Crushed . | . . Highest Temperature 180 | 48 180 Average Temperature 87 | 21 102 Received Heat Transfer 303 | 6 297 Siege Activations . | . . Martial Activations . | . . Shielding Activations . | . . Robots Disrupted . | . . Combat Hostiles . | . . Robots Corrupted . | . . Combat Hostiles . | . . Parts Fried . | . . Impact Corruptions . | . . Robots Melted . | . . Combat Hostiles . | . . Parts Melted 1 | . 1 Heat Transferred 200 | . 200 Parts Sabotaged . | . . Parts Stolen . | . . Parts Stripped . | . . Power Chain Reactions 2 | 1 1 Alert | -11 -10 ------- Run | Yrd Mat Maximum Alert Level . | . . Low Security (%) 100 | 100 100 Level 1 . | . . Level 2 . | . . Level 3 . | . . Level 4 . | . . Level 5 . | . . High Security . | . . Max Security . | . . Peak Influence 68 | 10 68 Initial 6 | . 6 Average 10 | 1 11 Influence Increases 241 | 25 216 Destroy 0b10 Robot/C 160 | 20 140 Destroy 0b10 Robot/NC 30 | 5 25 Destroy Leader 24 | . 24 Successful Hack 9 | . 9 Destroy Structure 3 | . 3 Lose Combat Pursuer 15 | . 15 Influence Decreases 221 | 15 206 Entered New Map 4 | . 4 Time Decay 167 | 15 152 Lost Part 50 | . 50 Squads Dispatched 4 | . 4 Investigation 3 | . 3 Extermination . | . . Reinforcement 1 | . 1 Assault . | . . Garrison . | . . Intercept . | . . Searches Triggered . | . . Construction Impeded . | . . Haulers Reinforced . | . . Active Scanning Responses . | . . Cargo Convoy Interrupts . | . . Stealth | -11 -10 --------- Run | Yrd Mat Distress Signals 1 | . 1 Communications Jammed . | . . Distress Signals . | . . Times Spotted 21 | 1 20 Peak Tracking Total 5 | 1 5 Tactical Retreats 1 | . 1 Traps | -11 -10 ------- Run | Yrd Mat Traps Triggered 2 | . 2 Indirectly . | . . Trap Hack Attempts . | . . Triggered . | . . Disarmed . | . . Reprogrammed . | . . Reused . | . . Traps Extracted . | . . Installed . | . . Triggered . | . . Machines | -11 -10 ---------- Run | Yrd Mat Machines Disabled . | . . Max in Single Turn . | . . Machines Repaired . | . . Machines Dismantled . | . . Machines Sabotaged . | . . Overloaded Fab Kills . | . . Hacking | -11 -10 --------- Run | Yrd Mat Machines Accessed 5 | . 5 Terminals 3 | . 3 Fabricators . | . . Repair Stations 1 | . 1 Recycling Units 1 | . 1 Scanalyzers . | . . Garrison Access . | . . Total Hacks 8 | . 8 Successful 5 | . 5 Failed 3 | . 3 Catastrophic 1 | . 1 Database Lockouts . | . . Manual . | . . Terminals 3 | . 3 Fabricators . | . . Repair Stations 3 | . 3 Recycling Units 2 | . 2 Scanalyzers . | . . Garrison Access . | . . Terminal Hacks 3 | . 3 Record 2 | . 2 Surveillance Status 1 | . 1 Fabricator Hacks . | . . Repair Station Hacks . | . . Recycling Unit Hacks 2 | . 2 Process 1 | . 1 Report Inventory 1 | . 1 Scanalyzer . | . . Garrison Access Hacks . | . . Unauthorized Hacks . | . . Terminals . | . . Fabricators . | . . Repair Stations . | . . Recycling Units . | . . Scanalyzers . | . . Garrison Access . | . . Data Cores Recovered . | . . Used . | . . Hacking Detections 4 | . 4 Full Trace Events 1 | . 1 Feedback Events . | . . Feedback Blocked . | . . Robot Schematics Acquired . | . . Robots Built . | . . Authchips . | . . Time . | . . Total Robot Build Rating . | . . Part Schematics Acquired . | . . Parts Built . | . . Authchips . | . . Time . | . . Total Part Build Rating . | . . Part Studies Acquired . | . . Parts Repaired . | . . Time . | . . Parts Recycled . | . . Recycled Matter . | . . Retrieved Matter . | . . Retrieved Components . | . . Parts Scanalyzed . | . . Part Schematics Acquired . | . . Parts Damaged . | . . Bothacking | -11 -10 ------------ Run | Yrd Mat Used RIF Installer . | . . Robots Hacked . | . . Non-combat . | . . Combat . | . . Robot Hacks Applied . | . . Relay Couplers Released . | . . Fabnet Peak Effective % . | . . Robots Rewired . | . . Allies Hacked . | . . Hacks Repelled . | . . Allies | -11 -10 -------- Run | Yrd Mat Total Allies . | . . Largest Group . | . . Highest-Rated Group . | . . Highest-Rated Ally . | . . Total Orders . | . . Ally Attacks . | . . Total Damage . | . . Kills . | . . Allies Corrupted . | . . Allies Melted . | . . Intel | -11 -10 ------- Run | Yrd Mat Active Infowar (turns) 610 | . 610 Optics 251 | . 251 Structural 610 | . 610 Robot Analysis Total . | . . Derelict Logs Recovered . | . . Drone Launches . | . . Drone Recoveries . | . . Exploration | -11 -10 ------------- Run | Yrd Mat Turns Passed 923 | 109 814 Spaces Moved 629 | 97 532 Core 42 | 39 3 Treads . | . . Legs 567 | 58 509 Wheels 6 | . 6 Hover 14 | . 14 Flight . | . . Fastest Speed 50 | 50 50 Average Speed 115 | 91 119 Slowest Speed 400 | 120 400 Overloaded Moves . | . . Propulsion Burnouts . | . . Robots Hopped . | . . Potential Cave-ins . | . . Cave-ins Triggered . | . . Exploration Rate (%) 31 | 8 54 Regions Visited 1 Branch Regions . Pre-discovered Areas . | . . Known Exits Taken . | . . Unknown Exits Taken 1 | 1 . Scrap Searched . | . . Spaces Dug . | . . Terrain Destroyed 10 | 4 6 Melee . | . . Projectile . | . . AOE 10 | 4 6 Terrain Rammed . | . . Walls Destroyed . | . . Machines Disabled . | . . Actions | -11 -10 --------- Run | Yrd Mat Total 773 | 111 662 Wait 37 | . 37 Move 628 | 96 532 Hop . | . . Pick Up 14 | 4 10 Fast Attach 5 | 1 4 Attach 14 | 5 9 Detach 7 | 2 5 Swap 1 | . 1 Drop 7 | . 7 Fire 50 | 3 47 Melee . | . . Ram 6 | . 6 Kick 4 | . 4 Crush . | . . Escape Stasis . | . . Rewire . | . . Trap . | . . Miscellaneous . | . . Route ------- -11/Scrapyard -10/Materials (discovered 4 exits: [*Mat x2] / [*Min] / [Sub]) History --------- Turn | Location | Event 2 | -11/Scrapyard | Met Revision 17 94 | -11/Scrapyard | Discovered new exit (range 8) 110 | -11/Scrapyard | Entered Materials 153 | -10/Materials | Discovered new exit (range 14) 312 | -10/Materials | Lost 3 parts (1p2w) 315 | -10/Materials | Discovered new exit (range 7) 444 | -10/Materials | Discovered new exit (range 14) 831 | -10/Materials | Discovered new exit (range 18) 877 | -10/Materials | Core integrity fell below 50% 917 | -10/Materials | Core integrity fell below 20% 924 | -10/Materials | Destroyed by G-34 Mercenary with Small Laser Last Messages --------------- attached, which reduces your speed. See your non-airborne propulsion's Drag stat. Ion Engine destroyed. Connecting with Repair Station... ALERT: Suspicious activity at Repair Station M001. Dispatching Investigation squad. [Achievement: One Hack Too Far] Slammed into S-10 Pest. S-10 Pest destroyed. Slammed into S-10 Pest. Hover Unit destroyed. System corrupted by crushing effect (+5). Slammed into S-10 Pest. Slammed into G-34 Mercenary. Destabilizing: Core damaged (-5). W-16 Scout sends out distress signal. Acquired Lgt. Assault Rifle. Aluminum Leg destroyed. S-10 Pest destroyed. [Achievement: First Step to Greatness] Map ----- +----------------------------------------------------+ | ?????????????????????????????????????????????????? | | ????????????????????????########?????????????????? | | ?????????????###################?????????????????? | | ?????????????########### ?????????????????? | | ?????????????## ?????????????????????? | | ?????????????## < ##?????????????????????? | | ????????????? # # ?????????????????????? | | ????????????? # + ?????????????????????? | | ????????????? # # ?????????????????????? | | ????????????? + ???????????????????????????? | | ????????????? # =##?????????????????????????????? | | ????????????? # %# ?????????????????????????????? | | ????????????? # # ?????????????????????????????? | | ????????????? # # ?????????????????????????????? | | ?????????????## + ?????????????????????????????? | | ?????????????## # ?????????????????????????????? | | ?????????????## # ?????????????????????????????? | | ?????????????## ##########?????????????????????? | | ?????????????## ##########?????????????????????? | | ?????????????## ## """ # ?????????????????????? | | ?????????????## ## "R" # ?????????????????????? | | ##???????????## = ## " " # ?????????????????????? | | ##?#######???## % ## *%=% # ?????????????????????? | | ##?#######??### ## [% =# ?????????????????????? | | #####"""####### ## g =%# ?????????????????????? | | #####"T"###### #g @# ?????????????????????? | | # """ # ?????????????????????? | | g """ # ?????????????????????? | | # """ # ?????????????????????? | | ############## # # # ?????????? | | ##############################+########+?????????? | | #####??# ?????????? | | #"T"#### % ?????????? | | % ?????????? | | ################+###### ##########?????????????? | | #?????????????? # # ####<###???????????????? | | #?????????????????? ##" %##?????????????????????? | | #?????????????????? # %% ##?????????????????????? | | #?????????????????? # # ####???????????????????? | | #?????????????????? ### #######????????????????? | | #?????????????????? ### ## ##### ##????????????? | | #????????????????????## ## ### ##????????????? | | #????????????????????## ## ## #### ?????????? | | #????????????????????## ## ## #### ?????????? | | ## ############### #### ## # ?????????? | | #####+################# # ?????????? | | #### % " + ?????????? | | #### #####+##### # ?????????? | | #### ## #####+####### # ?????????? | | ## ## ##### ## ?????????? | +----------------------------------------------------+ Best States ------------- Heat Dissipation 25 Energy Generation 10 Energy Capacity 250 Matter Stores 300 Matter Capacity 300 Sight Range 18 Terrain Scan Density 10 Evasion (%) 55 Item Schematics ----------------- None Robot Schematics ------------------ None Fabricated ------------ Nothing Repaired ---------- Nothing Studied --------- None Alien Tech Used ----------------- None Achievements -------------- First Step to Greatness For Emergencies Only Ghost 'Em One Hack Too Far Organ Harvest Spot Them First There's More Where That Came From Uninvited Guest Challenges ------------ None Game ------ Seed MiniSwarmCharge Manual? 0 Play Time 00:29:13 Cumulative 0.4 hours Start 2026.04.06 @ 19:18:21 End 2026.04.06 @ 19:49:09 Sessions 1 Manual Loads 0 Difficulty Rogue Special Mode None Game No. 1 Rogue 1 Adventurer 0 Explorer 0 Win Type - Total 0 Types 0/0/0/0/0/0/0/0/0/0 Lore% 0 Gallery% 0 Achievement% 1 Wizard Run 0 Options --------- Layout 1 ASCII 0 Keyboard 1 Movement Numpad Keybinds 0 Fullscreen 1 Font 24/Terminus Map View 50x35 Zoom Use 0% Tactical HUD 0 Map Filters NONE Filters NONE Steam 1 RUN: c4c4726e-cbde-4066-9183-5fe879103d03